Workbook

Sheet LM5088 Calculator
A1: LM(2)5088-1/2 Quick Start Component Calculator | D1: Date:1 Dec 2008 | F1: Ajay Hari | G1: Version 1.1
A7: Step 1 General Requirements
A8: Enter Design parameters in the shaded | B8: Vin(min)(V) | C8: 35 | AJ8: Controller Selection
A9: Cells | B9: Vin(max)(V) | C9: 36 | AJ9: Dither
B10: Vout(V) | C10: 32 | AJ10: Restart
B11: Max. Load Current (A) | C11: 1.5
B12: Ripple Current % of Max. Load Current | C12: 0.2 | AJ12: Yes
B13: Peak-Peak output voltage ripple(mV) | C13: 20 | AJ13: No
B14: Max. output volts deviation(mV) | C14: 100
A15: Step 2 Controller Selection | B15: =IF(Vin_min<Vout,"It is a Buck converter","") -> 
B16: Select the Controller Version | C16: Restart
B17: Recommended Device | C17: =IF(ControllerSelect="Restart", (IF(Vin_max>42,"LM5088-2","LM25088-2")),(IF(Vin_max>42,"LM5088-1","LM25088-1"))) -> LM25088-2
A19: Step 3 Switching Frequency | B19: Fsw(kHz) | C19: 250
A20: =IF(Fsw>MIN(Fswmax,Fswmin),"Part will enter into low dropout mode at VinMin, Decrease Fsw or, Change Vin/Vout range"," ") -> Part will enter into low dropout mode at VinMin, Decrease Fsw or, Change Vin/Vout range
A21: Step 4 Frequency Programming | B21: RRT(kΩ) | C21: =((0.001/Fsw)-280*0.000000001)/(152*0.000000001) -> 24.47368421
A23: Step 5 Inductor Value | B23: L(μH) | C23: =(Vout/(I_load_ripple*Max_Ave_Iload*Fsw*10000))*(1-(Vout/Vin_max))*10000000 -> 47.40740741
A25: Step 6 Current Limit | B25: Target(% Beyond Max. Load) | C25: 0.1
B26: Peak Load Current at Current Limit (A) | C26: =(1+ILoad_margin)*Max_Ave_Iload*(1+(I_load_ripple/2)) -> 1.815
B27: Current Sense Resistor (Rs)(mΩ) | C27: =0.12/(Ipk_load+(Vout/(L*Fsw*0.001)))*1000 -> 26.57807309
A29: Step 7 Ramp Configuration | B29: CRamp(pF) | C29: =5*100*L/Rs -> 891.8518519
B30: =IF(C30=""," ","Rramp(kΩ)") -> Rramp(kΩ) | C30: =IF(Vout>5, (VCC-Vramp)*1000/(Ios-25), "NA") -> 51.88076781
A32: Step 8 Output Capacitors | B32: COUT1(uF) | C32: =(L*((Max_Ave_Iload+(I_load_ripple*Max_Ave_Iload/2))^2))/(((Op_Deviation/1000)+Vout)^2-Vout^2) -> 20.13520541 | E32: LM5088 List of Components
B33: COUT2(uF) | C33: 390 | E33: Component | F33: Description | G33: Value | H33: Rating
B34: Max. Allowable ESR(mΩ) | C34: =DeltaVout/(I_load_ripple*Max_Ave_Iload) -> 66.66666667 | E34: Cin | F34: Input capacitor | G34: 5.366666667 | H34: =Vin_max*1.3 -> 46.8
B35: COUT_TOTAL (uF) | C35: =Cout1+Cout2 -> 410.1352054 | E35: CRamp | F35: Ramp capacitor | G35: =Cramp -> 891.8518519 | H35: 5 V
E36: Css | F36: Soft start capacitor | G36: =Css -> 0.008333333333 | H36: 5 V
A37: Step 9 Input Capacitors | B37: Input Capacitor Cin(uF) | C37: =Max_Ave_Iload/2/Fsw*1000 -> 3 | E37: COUT1 | F37: Output capacitor | G37: =Cout1 -> 20.13520541 | H37: =Vout*1.1 -> 35.2
E38: COUT2 | F38: Output capacitor | G38: =Cout2 -> 390 | H38: =Vout*1.1 -> 35.2
A39: Step 10 VIN UV Shutdown | B39: Select "Yes" or "No" | C39: Yes | E39: CCOMP | F39: Compensation capacitor | G39: =Ccomp -> 2859.649228 | H39: =Vout*1.1 -> 35.2
B40: =IF(C39="YES","UV Voltage (V)","") -> UV Voltage (V) | C40: 4.5 | E40: CHF | F40: Compensation capacitor | G40: =Chf -> 28.59649228 | H40: =Vout*1.1 -> 35.2
B41: =IF(C39="YES","Ruv2(kΩ)","") -> Ruv2(kΩ) | C41: 54.9 | E41: CVCC | F41: VCC bypass capacitor | G41: =CVCC -> 0.6168831169 | H41: 16V
B42: =IF(C39="YES","Ruv1(kΩ)","") -> Ruv1(kΩ) | C42: =(1.2*_Ruv2)/(Vin_UV+(5*0.001*_Ruv2)-1.2) -> 18.43054973 | E42: CBOOT | F42: Highside Bootstrap capacitor | G42: =Cboot -> 61.68831169 | H42: 16V
E43: CDITHER (LM(2)5088-1) | F43: Dither Capacitor | G43: =Cdither -> NA | H43: =IF(OR(Controller="LM5088-1",Controller="LM25088-1"),"5V","NA") -> NA
A44: Step 11 Feedback Resistors | B44: RFB1 (kΩ) | C44: 1.62 | E44: CRESTART(LM(2)5088-2) | F44: Hiccup Restart | G44: =Crestart -> 11.66666667 | H44: =IF(OR(Controller="LM5088-2",Controller="LM25088-2"),"5V","NA") -> 5V
B45: RFB2 (kΩ) | C45: =_Rfb1*((Vout/1.205)-1) -> 41.40074689 | E45: RFB1 | F45: Feedback resistor | G45: =_Rfb1 -> 1.62 | H45: =IF((Vref*Vref/(_Rfb1*1000))<0.0625,"1/16 W","1/8 W") -> 1/16 W
E46: RFB2 | F46: Feedback resistor | G46: =_Rfb2 -> 41.40074689 | H46: =IF((_Rfb2*(1/1000)*(Vref/_Rfb1)^2)<0.0625,"1/16 W","1/8 W") -> 1/16 W
A47: Step 12 Compensation Network | B47: Bandwidth (kHz) | C47: 20 | E47: RUV1 | F47: UVLO divider resistor | G47: =IF(UV_Selector="Yes", _Ruv1, "-") -> 18.43054973 | H47: =IF(UV_Selector="YES",(IF((Vin_max*_Ruv1/(_Ruv2+_Ruv1))^2/(_Ruv1*1000)>0.0625,"1/8W","1/16W")),"-") -> 1/16W
B48: RCOMP(kΩ) | C48: =(_Rfb2*6.28*Fbw*Cout1)*(10*Rs*0.000001) -> 27.82770375 | E48: RUV2 | F48: UVLO divider resistor | G48: =IF(UV_Selector="Yes",_Ruv2, "-") -> 54.9 | H48: =IF(UV_Selector="YES",(IF((Vin_max*_Ruv2/(_Ruv2+_Ruv1))^2/(_Ruv2*1000)>0.0625,"1/8W","1/16W")),"-") -> 1/16W
B49: CCOMP(pF) | C49: =10*1000000/(2*PI()*Fbw*Rcomp) -> 2859.649228 | E49: Rs | F49: Sense Resistor | G49: =Rs -> 26.57807309 | H49: =IF(Iload*Iload*Rs*0.001<0.25, "1/4 W", IF(Iload*Iload*Rs*0.001<0.5, "1/2 W", IF(Iload*Iload*Rs*0.001<1,"1 W"))) -> 1/4 W
B50: CHF(pF) | C50: =IF(Chf<47,"47",Chf) -> 47 | E50: RRT | F50: Oscillator Timing resistor | G50: =RT -> 24.47368421 | H50: =IF((Vref*Vref/RT)<0.0625,"1/16 W","1/8 W") -> 1/16 W
E51: L | F51: Inductor | G51: =L -> 47.40740741 | H51: =Ipk_load*1.1 -> 1.9965
A52: Step 13 Soft Start Capacitor | B52: Soft-Start Time (ms) | C52: 1 | E52: RRamp | F52: Optional Ramp resistor | G52: =IF(Vout>5, (VCC-Vramp)*1000/(Ios-25), "NA") -> 51.88076781 | H52: =IF(G52="-","-","1/16 W") -> 1/16 W
B53: Soft-Start Capacitor Css (uF) | C53: =(10*tss*0.001)/1.2 -> 0.008333333333 | E53: RCOMP | F53: Compensation resistor | G53: =Rcomp -> 27.82770375 | H53: 1/8 W
E54: D | F54: Schottky Diode | G54: Voltage Rating | H54: =1.1*Vin_max -> 39.6
A55: Step 14 CBOOT & VCC Capacitor | B55: FET total gate charge QT (nano Coulombs) | C55: 19 | E55: Q | F55: MOSFET | G55: Voltage Rating | H55: =1.1*Vin_max -> 39.6
B56: CBOOT(nF) | C56: =Qg/(0.04*7.7) -> 61.68831169
B57: CVCC(uF) | C57: =IF(CVCC<0.1,"0.1",CVCC) -> 0.6168831169
A59: Step 15 Dither Capacitor(LM(2)5088-1) | B59: =IF(OR(Controller="LM5088-1",Controller="LM25088-1"),"Cdither(uF)","NA") -> NA | C59: =IF(ControllerSelect="Dither",(2500/(Fsw*1000*0.12)),"NA") -> NA
A61: Step 16 Restart Capacitor(LM(2)5088-2) | B61: =IF(OR(Controller="LM5088-2",Controller="LM25088-2"),"Allowable current limit overload time (ms)","NA") -> Allowable current limit overload time (ms) | C61: 280
B62: =IF(OR(Controller="LM5088-2",Controller="LM25088-2"),"Hiccup Sleep Time (ms)","NA") -> Hiccup Sleep Time (ms) | C62: =IF(ControllerSelect="Restart",(Crestart*1000)/(1.2*1),"NA") -> 9722.222222
B63: =IF(OR(Controller="LM5088-2",Controller="LM25088-2"),"Cres(uF)","NA") -> Cres(uF) | C63: =IF(ControllerSelect="Restart",(50*n)/(1.2*1000),"NA") -> 11.66666667

Sheet Power Dissipation
A6: Assumptions
A7: Ambient Temperature | B7: 85
A8: Package RJA | B8: 40
A11: VIN | B11: =Vin_min -> 35 | C11: =Vin_min+(Vin_max-Vin_min)/10 -> 35.1 | D11: =Vin_min+2*(Vin_max-Vin_min)/10 -> 35.2 | E11: =Vin_min+3*(Vin_max-Vin_min)/10 -> 35.3 | F11: =Vin_min+4*(Vin_max-Vin_min)/10 -> 35.4 | G11: =Vin_min+5*(Vin_max-Vin_min)/10 -> 35.5 | H11: =Vin_min+6*(Vin_max-Vin_min)/10 -> 35.6 | I11: =Vin_min+7*(Vin_max-Vin_min)/10 -> 35.7 | J11: =Vin_min+8*(Vin_max-Vin_min)/10 -> 35.8 | K11: =Vin_min+9*(Vin_max-Vin_min)/10 -> 35.9 | L11: =Vin_min+10*(Vin_max-Vin_min)/10 -> 36
A12: IC Power | B12: =B11*(7*0.001+Qg*Fsw*0.000001) -> 0.41125 | C12: 0.412425 | D12: 0.4136 | E12: 0.414775 | F12: 0.41595 | G12: 0.417125 | H12: 0.4183 | I12: 0.419475 | J12: 0.42065 | K12: 0.421825 | L12: 0.423
A13: Delta TJ above TA | B13: =B12*RJA -> 16.45 | C13: 16.497 | D13: 16.544 | E13: 16.591 | F13: 16.638 | G13: 16.685 | H13: 16.732 | I13: 16.779 | J13: 16.826 | K13: 16.873 | L13: 16.92
A14: Junction temperature | B14: =TA+B12*RJA -> 101.45 | C14: 101.497 | D14: 101.544 | E14: 101.591 | F14: 101.638 | G14: 101.685 | H14: 101.732 | I14: 101.779 | J14: 101.826 | K14: 101.873 | L14: 101.92

Sheet Bode Plots
C1: Frequency (Hz) | D1: Frequency (rad/sec) | E1: Modulator Gain (dB) | F1: Modulator Phase (deg) | G1: Error Amplifier Gain (dB) | H1: Error Amplifier Phase (deg) | I1: Overall Loop Gain (dB) | J1: Loop Phase (deg)
C2: 0.1 | D2: =2*PI()*C2 -> 0.6283185307 | E2: =20*LOG( DC_GAIN_MOD/SQRT( (D2*Rload*Cout1*0.000001)^2 + 1)) -> 38.09070424 | F2: =-ATAN(D2*Rload*Cout1*0.000001)*(180/PI()) -> -0.01546383738 | G2: =20*LOG(SQRT((D2*Rcomp*Ccomp*0.000000001)^2+1)) - 20*LOG((_Rfb2*Ccomp*0.000000001*D2))-20*LOG(SQRT((Rcomp*Chf*0.000000001*D2)^2+1)) -> 82.56998383 | H2: =ATAN(D2*Rcomp*Ccomp*0.000000001)*180/PI() -90 - ATAN(D2*Rcomp*Chf*0.000000001)*180/PI() -> -89.99716386 | I2: =E2+G2 -> 120.6606881 | J2: =F2+H2+180 -> 89.9873723
C3: 0.2 | D3: =2*PI()*C3 -> 1.256637061 | E3: 38.09070329 | F3: -0.0309276725 | G3: 76.54938395 | H3: -89.99432772 | I3: =E3+G3 -> 114.6400872 | J3: =F3+H3+180 -> 89.97474461
C4: 0.5 | D4: 3.141592654 | E4: 38.09069665 | F4: -0.07731914183 | G4: 68.590584 | H4: -89.98581929 | I4: 106.6812807 | J4: 89.93686156
C5: 1 | D5: 6.283185307 | E5: 38.09067292 | F5: -0.1546380021 | G5: 62.5699849 | H5: -89.97163859 | I5: 100.6606578 | J5: 89.87372341 | R5: Additional Definitions
C6: 2 | D6: 12.56637061 | E6: 38.09057802 | F6: -0.3092737513 | G6: 56.54938825 | H6: -89.9432772 | I6: 94.63996626 | J6: 89.74744905 | T6: UVLO Selector
C7: 5 | D7: 31.41592654 | E7: 38.08991374 | F7: -0.773144958 | G7: 48.59061087 | H7: -89.85819324 | I7: 86.68052461 | J7: 89.3686618 | R7: RLOAD | S7: =Vout/Max_Ave_Iload -> 21.33333333 | T7: Yes
C8: 10 | D8: 62.83185307 | E8: 38.08754217 | F8: -1.546008461 | G8: 42.57009238 | H8: -89.71638828 | I8: 80.65763455 | J8: 88.73760326 | R8: DC GAIN MOD | S8: =Rload/(10*Rs*0.001) -> 80.26666667 | T8: No
C9: 20 | D9: 125.6637061 | E9: 38.07806879 | F9: -3.089768961 | G9: 36.54981813 | H9: -89.43279088 | I9: 74.62788692 | J9: 87.47744016 | R9: VCC | S9: 7.7
C10: 50 | D10: 314.1592654 | E10: 38.01232751 | F10: -7.685490291 | G10: 28.59329695 | H10: -88.58222776 | I10: 66.60562447 | J10: 83.73228195
C11: 100 | D11: 628.3185307 | E11: 37.78534183 | F11: -15.10396148 | G11: 22.58082654 | H11: -87.16624266 | I11: 60.36616838 | J11: 77.72979586
C12: 200 | D12: 1256.637061 | E12: 36.98018756 | F12: -28.3597195 | G12: 16.5925933 | H12: -84.34670262 | I12: 53.57278086 | J12: 67.29357788
C13: 500 | D13: 3141.592654 | E13: 33.58654868 | F13: -53.46047284 | G13: 8.853845974 | H13: -76.10699568 | I13: 42.44039465 | J13: 50.43253148
C14: 1000 | D14: 6283.185307 | E14: 28.90813336 | F14: -69.66959565 | G14: 3.538975375 | H14: -63.72142533 | I14: 32.44710874 | J14: 46.60897902
C15: 2000 | D15: 12566.37061 | E15: 23.29966124 | F15: -79.50452764 | G15: -0.4407504122 | H15: -45.5729387 | I15: 22.85891083 | J15: 54.92253366
C16: 5000 | D16: 31415.92654 | E16: 15.4636285 | F16: -85.76196126 | G16: -2.808749696 | H16: -23.23350567 | I16: 12.65487881 | J16: 71.00453307
C17: 10000 | D17: 62831.85307 | E17: 9.460853564 | F17: -87.87807825 | G17: -3.291126516 | H17: -14.1723377 | I17: 6.169727048 | J17: 77.94958405
C18: 20000 | D18: 125663.7061 | E18: 3.444721349 | F18: -88.93867521 | G18: -3.450616096 | H18: -11.42118627 | I18: -0.005894747121 | J18: 79.64013852
C19: 50000 | D19: 314159.2654 | E19: -4.512827045 | F19: -89.57542929 | G19: -3.706962325 | H19: -16.32685351 | I19: -8.21978937 | J19: 74.0977172
C20: 100000 | D20: 628318.5307 | E20: -10.5332481 | F20: -89.78771173 | G20: -4.417979396 | H20: -27.71081402 | I20: -14.9512275 | J20: 62.50147425
C21: 200000 | D21: 1256637.061 | E21: -16.5538033 | F21: -89.8938555 | G21: -6.46048178 | H21: -45.5729387 | I21: -23.01428508 | J21: 44.5332058
C22: 500000 | D22: 3141592.654 | E22: -24.51259095 | F22: -89.95754216 | G22: -12.05392668 | H22: -68.42777241 | I22: -36.56651763 | J22: 21.61468543
C23: 1000000 | D23: 6283185.307 | E23: -30.53318908 | F23: -89.97877108 | G23: -17.6003322 | H23: -78.80465893 | I23: -48.13352128 | J23: 11.21656999
U30: =(Vout/Vin_max)/(120*0.000000001*1000) -> 7407.407407
U31: =(1-(Vout/Vin_min))/(0.00000055*1000) -> 155.8441558
